bitfinex-derivatives/quotes_ETHF0:USTF0_20240910
["timestamp","ask_amount","ask_price","bid_price","bid_amount"]
[1725968417666,2.22869656,2346.6,2346.5,0.42614]
[1725968417858,2.22869656,2346.7,2346.6,0.42612]
[1725968418558,2.65479656,2346.7,2346.5,0.7684]
[1725968418754,2.65479656,2346.7,2346.5,1.19453]
[1725968419558,2.22869656,2346.7,2346.6,0.42612]
[1725968420864,2.78587071,2346.9,2346.7,0.4261]
[1725968420865,2.22869656,2346.8,2346.7,0.4261]
[1725968422865,0.42607,2346.9,2346.8,0.42609]
[1725968423161,0.42607,2346.9,2346.7,0.42609]
[1725968423162,2.65487967,2346.9,2346.7,0.42609]
[1725968423560,2.65487967,2346.9,2346.8,0.42609]
[1725968424959,2.22880967,2346.9,2346.5,1.88601986]
[1725968425164,4.87880967,2346.8,2346.7,0.4261]
[1725968425762,5.30489967,2346.8,2346.7,0.4261]
[1725968426163,3.07609,2346.8,2346.7,0.4261]
[1725968426976,2.65,2346.8,2346.7,0.4261]
[1725968427176,5.30489967,2346.8,2346.7,0.4261]
[1725968428466,2.65,2346.8,2346.7,0.4261]
[1725968428665,3.07609,2346.8,2346.7,0.4261]
[1725968430368,2.22880967,2346.9,2346.8,0.42609]
[1725968430568,2.65485967,2347.0,2346.9,0.42607]
[1725968430874,0.42605,2347.0,2346.9,1.17167]
[1725968431262,0.42605,2347.0,2346.6,1.11761986]
[1725968431475,2.65485967,2347.1,2346.9,0.42606]
[1725968431870,2.65485967,2347.1,2347.0,0.42605]
[1725968432071,0.42605,2347.1,2347.0,0.42605]
[1725968432272,5.30483967,2347.2,2347.0,0.42605]
[1725968432467,4.87880967,2347.2,2347.1,0.42603]
[1725968432673,2.22880967,2347.3,2346.8,1.06522]
[1725968432880,2.65481967,2347.3,2347.1,0.42603]
[1725968433385,2.22880967,2347.3,2346.8,1.06521]
[1725968433571,0.426,2347.3,2347.1,0.42602]
[1725968433879,2.22880967,2347.4,2346.9,2.65]
[1725968434073,2.65477967,2347.5,2347.0,0.7771]
[1725968434270,2.65477967,2347.5,2347.2,0.426]
[1725968434576,2.65477967,2347.5,2347.3,0.42599]
[1725968434577,2.65476967,2347.5,2347.3,0.42599]
[1725968434780,2.65476967,2347.5,2347.2,0.426]
[1725968434981,5.30474967,2347.6,2347.3,0.42598]
[1725968435178,5.30474967,2347.6,2347.4,0.42598]
[1725968435179,3.07594,2347.6,2347.4,0.42598]
[1725968435365,3.07594,2347.6,2347.3,0.42598]
[1725968435569,2.65,2347.6,2347.4,0.42598]
[1725968435872,1.20043,2347.7,2347.4,0.42597]
[1725968436272,0.7745,2347.7,2347.0,43.75982986]
[1725968436477,0.42589,2348.0,2347.4,2.65]
[1725968436683,0.42589,2348.0,2347.7,0.42592]
[1725968437179,0.42589,2348.0,2347.6,0.42593]
[1725968437678,0.42589,2348.0,2347.5,0.7713]
[1725968437679,0.42589,2347.9,2347.5,0.7713]
[1725968437874,0.42589,2347.9,2347.6,0.42593]
[1725968438181,0.42589,2347.9,2347.5,1.19725]
[1725968438369,0.42589,2347.9,2347.6,0.42593]
[1725968438370,0.4043,2347.8,2347.6,0.42593]
[1725968438571,0.4043,2347.8,2347.5,1.19725]
[1725968438876,0.4043,2347.8,2347.6,0.42594]
[1725968439388,0.4043,2347.8,2347.5,1.19725]
[1725968439579,0.8004,2347.8,2347.5,1.19725]
[1725968439768,0.8004,2347.8,2347.6,0.42594]
[1725968440074,0.8004,2347.8,2347.5,1.19725]
[1725968440472,0.8004,2347.8,2347.6,0.42594]
[1725968441580,0.4259,2347.9,2347.6,0.42594]
[1725968441981,0.42589,2347.9,2347.6,0.42593]
[1725968442478,0.42589,2347.9,2347.5,0.7713]
[1725968442684,0.42589,2347.9,2347.6,0.42593]
[1725968442880,3.07587,2348.0,2347.7,0.42592]
[1725968443082,2.88487071,2348.4,2347.8,2.65]
[1725968443083,2.32780967,2348.4,2347.8,2.65]
[1725968443283,2.32780967,2348.4,2347.9,0.3955]
[1725968443284,0.42581,2348.4,2347.9,0.3955]
[1725968443481,3.47779,2348.5,2348.2,0.42583]
[1725968443778,3.47779,2348.5,2348.1,0.42584]
[1725968443779,0.4258,2348.4,2348.1,0.42584]
[1725968443985,0.42582,2348.3,2348.0,0.80785]
[1725968444482,2.65,2348.3,2348.0,0.42585]
[1725968444781,0.3805,2348.2,2347.9,0.3955]
[1725968445082,0.80257,2348.1,2347.8,0.4259]
[1725968445279,0.42587,2348.0,2347.8,0.4259]
[1725968445475,0.3767,2348.1,2347.7,0.4029]
[1725968445476,0.80256,2348.1,2347.7,0.4029]
[1725968445683,0.80256,2348.1,2347.8,0.4259]
[1725968445881,0.42587,2348.0,2347.7,0.82881]
[1725968446084,0.80256,2348.1,2347.8,0.4259]
[1725968446777,0.80256,2348.1,2347.7,0.4029]
[1725968446778,0.42587,2348.0,2347.7,0.82881]
[1725968447087,0.42587,2348.0,2347.8,0.4259]
[1725968447589,0.80256,2348.1,2347.8,0.4259]
[1725968448884,0.80256,2348.1,2347.7,1.19431]
[1725968448885,2.65,2348.0,2347.7,1.19431]
[1725968449087,3.07588,2348.0,2347.7,1.19431]
[1725968449784,2.65,2348.0,2347.8,0.4259]
[1725968449984,2.65,2348.0,2347.7,1.19431]
[1725968450184,0.42589,2347.9,2347.7,0.7684]
[1725968450385,3.07588,2348.0,2347.7,1.19432]
[1725968452185,0.42589,2347.9,2347.7,1.19431]
[1725968452392,3.07588,2348.0,2347.7,1.19431]
[1725968452587,3.07588,2348.0,2347.7,0.7684]
[1725968452990,3.07588,2348.0,2347.8,0.4259]
[1725968453187,3.07588,2348.0,2347.7,1.19431]
[1725968453188,2.65,2348.0,2347.7,1.19431]
[1725968453383,3.07587,2348.0,2347.8,0.4259]
[1725968453696,3.07587,2348.0,2347.7,0.7684]
[1725968453697,0.42589,2347.9,2347.7,1.19431]
[1725968453987,3.07588,2348.0,2347.8,0.4259]
[1725968454700,3.07587,2348.0,2347.8,0.4259]
[1725968455407,0.42589,2347.9,2347.7,1.19431]
[1725968455589,2.65,2348.0,2347.7,0.3655]
[1725968455793,0.42589,2347.9,2347.7,0.79141]
[1725968456394,0.42589,2347.9,2347.8,0.4259]
[1725968456594,0.42589,2347.9,2347.7,0.79141]
[1725968456899,3.07588,2348.0,2347.8,0.4259]
[1725968457491,0.3767,2348.1,2347.7,0.3655]
[1725968457686,0.3767,2348.1,2347.8,0.3751]
[1725968457893,0.80634,2348.2,2348.0,0.42587]
[1725968458095,0.42584,2348.2,2348.0,0.42587]
[1725968458292,0.42584,2348.2,2348.1,0.3888]
[1725968458797,0.42584,2348.2,2347.9,0.42587]
[1725968459004,0.42585,2348.1,2347.9,0.81957]
[1725968459392,10.51286839,2348.3,2347.9,0.3937]
[1725968459693,0.42584,2348.2,2348.0,0.81716]
[1725968459894,10.51286839,2348.3,2348.0,0.3913]
[1725968460101,0.42581,2348.4,2348.2,0.42582]
[1725968460800,0.42582,2348.3,2348.1,0.42584]
[1725968461201,0.42584,2348.2,2348.0,0.81716]
[1725968461593,0.42585,2348.2,2348.0,0.81716]
[1725968461791,1.06454,2348.3,2347.9,0.81958]
[1725968462104,0.80646,2348.1,2347.9,0.81958]
[1725968462306,0.3698,2348.0,2347.9,0.81958]
[1725968462604,3.0198,2348.0,2347.7,0.3913]
[1725968462794,3.3864,2348.0,2347.7,0.42592]
[1725968462989,0.42589,2347.9,2347.7,0.42592]
[1725968464799,0.4259,2347.8,2347.7,0.42592]
[1725968464995,0.4259,2347.9,2347.7,0.42592]
[1725968465388,0.4259,2347.9,2347.8,0.4259]
[1725968465593,1.06454,2348.3,2348.0,0.42586]
[1725968465792,0.42584,2348.2,2348.0,0.42586]
[1725968466994,0.42584,2348.2,2348.1,0.4017]
[1725968467302,0.42585,2348.1,2347.9,0.42587]
[1725968467496,10.88255614,2348.3,2348.0,0.42587]
[1725968467798,0.42585,2348.1,2347.9,0.42587]
[1725968468595,0.42588,2348.0,2347.8,0.7966]
[1725968468801,0.42586,2348.1,2347.9,0.42589]
[1725968469804,3.07584,2348.2,2348.0,0.42586]
[1725968470005,0.42586,2348.1,2347.9,0.81438]
[1725968471997,0.42587,2348.0,2347.9,0.3885]
[1725968472203,0.42587,2348.0,2347.9,0.81439]
[1725968474703,3.7146,2348.2,2347.9,0.81439]
[1725968474704,0.42586,2348.1,2347.9,0.3885]
[1725968474906,0.42584,2348.2,2347.9,0.3885]
[1725968475211,0.42584,2348.2,2348.0,0.42586]
[1725968475409,0.42585,2348.1,2348.0,0.42586]
[1725968475604,0.42587,2348.0,2347.9,0.81438]
[1725968475910,0.42587,2348.0,2347.9,0.3885]
[1725968476412,0.42586,2348.1,2348.0,0.42587]
[1725968476605,2.22880967,2348.2,2348.0,0.42587]
[1725968476804,2.22880967,2348.2,2348.1,0.42585]
[1725968477107,2.78587071,2348.3,2348.2,0.42583]
[1725968477108,2.65462967,2348.3,2348.2,0.42583]
[1725968477514,2.22880967,2348.3,2348.2,0.42583]
[1725968477804,2.65461967,2348.4,2348.2,0.42583]
[1725968478008,2.65461967,2348.4,2348.3,0.7824]
[1725968478210,0.42581,2348.4,2348.3,1.20821]
[1725968478407,13.23654581,2348.4,2348.3,1.20821]
[1725968478610,2.22642445,2348.4,2348.3,1.20821]
[1725968478799,2.65222445,2348.4,2348.3,0.7824]
[1725968479408,2.65222445,2348.4,2348.3,1.20821]
[1725968479714,2.65222445,2348.4,2348.3,0.7824]
[1725968480108,0.4258,2348.4,2348.3,0.7824]
[1725968480304,0.42582,2348.3,2348.2,0.42583]
[1725968480503,2.65339649,2348.3,2348.2,0.42583]
[1725968482313,2.22757649,2348.3,2348.1,0.42584]
[1725968482512,2.22789766,2348.2,2348.1,0.42584]
[1725968482703,0.42583,2348.3,2348.2,0.42583]
[1725968483310,4.87789766,2348.4,2348.1,0.42584]
[1725968483512,0.42583,2348.3,2348.1,0.42584]
[1725968483710,0.42583,2348.3,2348.2,0.42583]
[1725968485412,2.22789766,2348.4,2348.2,0.42582]
[1725968485614,2.65370766,2348.4,2348.2,0.42582]
[1725968485815,2.22789766,2348.4,2348.3,0.42581]
[1725968486116,2.22789766,2348.5,2348.4,0.4258]
[1725968486510,2.22789766,2348.7,2348.3,2.18215986]
[1725968486711,2.65364766,2348.7,2348.6,0.42576]
[1725968486911,2.65364766,2348.7,2348.5,0.42577]
[1725968487111,2.65364766,2348.7,2348.6,0.42576]
[1725968487416,0.42575,2348.7,2348.5,0.42576]
[1725968488422,0.42575,2348.7,2348.6,0.3914]
[1725968488724,2.65362766,2348.8,2348.6,0.3914]
[1725968489016,0.42574,2348.7,2348.6,0.3914]
[1725968489614,3.21161071,2348.7,2348.6,0.3914]
[1725968489807,2.65,2348.8,2348.4,0.759]
[1725968490014,2.7837596,2348.5,2348.0,4.60685]
[1725968490225,0.42585,2348.1,2347.9,1.58617]
[1725968490410,2.22674081,2348.1,2348.0,0.42587]
[1725968490619,2.65260081,2348.1,2347.9,1.58618]
[1725968490825,2.22674081,2348.0,2347.9,1.58618]
[1725968491417,2.22674081,2348.1,2348.0,0.42587]
[1725968496124,2.22674081,2348.1,2348.0,4.68507]
[1725968496328,2.7837596,2348.3,2348.0,4.68507]
[1725968496329,2.22674081,2348.2,2348.1,0.42585]
[1725968496628,2.22674081,2348.4,2348.0,3.71466]
[1725968496822,2.22674081,2348.4,2348.3,0.42581]
[1725968497828,2.22674081,2348.4,2348.1,1.06461]
[1725968497829,2.65250081,2348.6,2348.4,0.42579]
[1725968498331,2.65250081,2348.6,2348.5,0.3827]
[1725968498515,0.42576,2348.6,2348.5,0.3827]
[1725968499223,2.65248081,2348.7,2348.6,0.42576]
[1725968499525,0.42576,2348.6,2348.5,0.3827]
[1725968499829,2.65249081,2348.7,2348.5,0.80847]
[1725968500128,0.42575,2348.7,2348.5,0.80847]
[1725968500924,0.42576,2348.6,2348.5,0.80847]
[1725968501125,0.42576,2348.6,2348.4,0.42578]
[1725968502326,0.42576,2348.6,2348.3,1.1249]
[1725968502538,0.42582,2348.3,2348.1,1.49541986]
[1725968502825,0.42582,2348.3,2348.1,0.80364]
[1725968503029,1.83776,2348.5,2348.0,1.18466]
[1725968503030,0.42584,2348.2,2348.0,1.18466]
[1725968504022,0.42583,2348.3,2348.1,0.42584]
[1725968504426,0.42583,2348.3,2348.1,0.80684]
[1725968504827,2.22674081,2348.2,2348.1,0.80684]
[1725968505123,2.65257081,2348.3,2348.1,0.80684]
[1725968506132,2.65256081,2348.3,2348.1,0.381]
[1725968506324,3.02747081,2348.2,2348.1,0.381]
[1725968506528,0.42585,2348.1,2348.0,0.80366]
[1725968506727,2.60267488,2348.2,2348.0,0.3778]
[1725968506923,3.02852488,2348.2,2348.0,0.80366]
[1725968507329,2.65362488,2348.1,2348.0,0.3778]
[1725968507530,2.65362488,2348.1,2348.0,0.80367]
[1725968507730,3.02852488,2348.2,2348.0,0.80367]
[1725968508127,2.65362488,2348.1,2348.0,0.80367]
[1725968508630,2.22777488,2348.1,2348.0,0.80367]
[1725968509532,2.65362488,2348.1,2348.0,0.80367]
[1725968510236,2.65362488,2348.1,2348.0,0.3778]
[1725968511325,3.05082488,2348.1,2348.0,0.3778]
[1725968511830,0.82305,2348.1,2348.0,0.80367]
[1725968512024,0.3972,2348.1,2348.0,0.80367]
[1725968512229,0.80074,2348.2,2348.0,0.80367]
[1725968512429,0.42584,2348.2,2348.1,0.42585]
[1725968512632,0.42582,2348.3,2348.0,0.3778]
[1725968512935,5.67547488,2348.4,2348.3,0.42581]
[1725968512936,0.4005,2348.4,2348.3,0.42581]
[1725968513538,0.8263,2348.4,2348.3,0.42581]
[1725968513732,0.4005,2348.4,2348.3,0.82101]
[1725968514037,2.62497488,2348.6,2348.4,0.42579]
[1725968514228,0.42578,2348.5,2348.4,0.79379]
[1725968514531,3.05074488,2348.6,2348.4,0.79379]
[1725968514732,2.22777488,2348.7,2348.6,0.42576]
[1725968515035,2.65348488,2348.9,2348.7,0.42574]
[1725968515335,4.87777488,2348.9,2348.4,1.48561986]
[1725968515540,5.30349488,2348.9,2348.7,0.42574]
[1725968515742,2.62187488,2349.0,2348.8,0.42572]
[1725968515935,0.3941,2349.0,2348.5,2.18205986]
[1725968516127,0.3941,2349.0,2348.9,0.4257]
[1725968516339,2.60547488,2349.2,2349.0,0.42568]
[1725968516731,3.03112488,2349.2,2349.0,0.42568]
[1725968516941,2.22777488,2349.3,2349.0,2.65]
[1725968517150,0.3941,2349.5,2349.3,0.42562]
[1725968517340,0.82757,2349.7,2349.4,0.42561]
[1725968517650,0.42558,2349.6,2349.3,0.42562]
[1725968519244,0.42558,2349.6,2349.3,0.80012]
[1725968520754,5.27977488,2349.7,2349.2,40.8]
[1725968520955,2.65,2349.3,2348.8,4.9372]
[1725968521245,2.65,2349.3,2348.5,0.42577]
[1725968521246,0.42575,2348.7,2348.5,0.42577]
[1725968521445,0.42573,2348.8,2348.3,44.5751]
[1725968521747,0.7748,2349.2,2348.8,0.42572]
[1725968521950,0.42571,2348.9,2348.7,0.42573]
[1725968522240,0.42572,2348.8,2348.6,0.42575]
[1725968522443,0.42572,2348.8,2348.5,0.42577]
[1725968522649,0.42572,2348.8,2348.6,0.42576]
[1725968523338,6.71673488,2349.2,2348.7,0.42574]
[1725968523339,0.42572,2348.9,2348.7,0.42574]
[1725968524046,1.06418,2349.1,2348.3,48.6571]
[1725968524245,1.06418,2349.1,2348.5,0.42577]
[1725968524246,0.42574,2348.7,2348.5,0.42577]
[1725968524943,1.06427,2348.9,2348.3,0.7466]
[1725968525146,1.06427,2348.9,2348.3,1.17241]
[1725968525147,0.42578,2348.5,2348.3,1.17241]
[1725968525950,0.3841,2348.6,2348.4,0.42579]
[1725968525951,0.80987,2348.6,2348.4,0.42579]
[1725968526244,0.80987,2348.6,2348.3,1.1724]
[1725968526449,0.42578,2348.5,2348.3,1.1724]
[1725968528244,0.42581,2348.3,2348.1,0.42584]
[1725968528444,0.42582,2348.3,2348.1,0.42584]
[1725968528644,0.42582,2348.3,2348.0,2.65]
[1725968528645,0.42584,2348.2,2348.0,0.42586]
[1725968528843,1.06447,2348.5,2347.9,41.9349]
[1725968529038,1.06447,2348.5,2348.0,0.42587]
[1725968529039,0.42585,2348.2,2348.0,0.42587]
[1725968529237,4.09852,2348.6,2347.9,1.17418]
[1725968529238,1.0645,2348.4,2347.9,1.17418]
[1725968529441,0.42584,2348.2,2348.0,0.42586]
[1725968529745,0.42584,2348.2,2347.6,0.099]
[1725968529746,2.65,2348.2,2347.6,0.099]
[1725968530048,0.42591,2347.8,2347.6,0.42593]
[1725968530341,0.42591,2347.8,2347.5,1.19415]
[1725968530541,2.65,2348.0,2347.5,1.19415]
[1725968530542,0.42589,2347.9,2347.6,0.42593]
[1725968531243,0.099,2348.4,2347.8,2.65]
[1725968531450,0.42584,2348.2,2347.9,0.42588]
[1725968532152,0.42582,2348.3,2348.0,0.42586]
[1725968532345,10.62466129,2348.4,2348.0,0.42586]
[1725968532540,0.42583,2348.3,2348.0,0.42586]
[1725968532746,0.42581,2348.3,2348.0,0.79196]
[1725968532942,0.42581,2348.3,2348.1,0.3991]
[1725968533148,0.42583,2348.2,2348.1,0.3991]
[1725968533554,0.4258,2348.4,2348.1,0.82495]
[1725968533850,5.64237488,2348.6,2348.2,0.42582]
[1725968534047,0.3797,2348.6,2348.3,0.42581]
[1725968534350,0.42579,2348.5,2348.2,0.42582]
[1725968534750,0.42579,2348.5,2348.3,0.42581]
[1725968534945,0.42579,2348.5,2348.2,0.42582]
[1725968535251,0.42578,2348.5,2348.3,0.42581]
[1725968536050,0.42578,2348.5,2348.2,0.42582]
[1725968536248,10.48241488,2348.8,2348.2,0.42582]
[1725968536249,0.4258,2348.4,2348.2,0.42582]
[1725968536442,2.22777488,2348.7,2348.2,0.42582]
[1725968536443,0.42579,2348.5,2348.2,0.42582]
[1725968537652,12.90743088,2348.7,2348.2,0.42582]
[1725968537653,0.4258,2348.4,2348.2,0.42582]
[1725968537858,0.42583,2348.3,2348.1,0.3991]
[1725968538146,0.42581,2348.4,2348.1,0.3991]
[1725968538548,0.42581,2348.4,2348.1,0.82494]
[1725968538946,3.71442,2348.6,2348.1,0.82494]
[1725968538947,0.42582,2348.3,2348.1,0.82494]
[1725968539653,1.0645,2348.4,2348.0,0.3661]
[1725968539858,1.0645,2348.4,2348.0,0.79196]
[1725968539859,0.42584,2348.2,2348.0,0.79196]
[1725968540351,0.42584,2348.2,2348.0,0.3661]
[1725968540551,0.42584,2348.2,2348.1,0.42585]
[1725968545256,0.80862,2348.3,2348.2,0.42583]
[1725968545458,0.80862,2348.3,2348.1,0.42584]
[1725968545646,0.386,2348.5,2348.2,0.42583]
[1725968545851,0.386,2348.5,2348.3,0.3914]
[1725968546659,0.4258,2348.4,2348.3,0.3914]
[1725968546865,0.4258,2348.4,2348.3,0.81721]
[1725968547353,0.4258,2348.4,2348.3,0.3914]
[1725968550554,1.4903,2348.4,2348.3,0.3914]
[1725968550859,0.42583,2348.2,2348.1,0.42584]
[1725968551061,0.42583,2348.2,2348.1,0.3695]
[1725968551361,0.42583,2348.3,2348.2,0.42583]
[1725968553857,0.4258,2348.4,2348.3,0.4258]
[1725968554057,0.1,2348.5,2348.4,0.4258]
[1725968554457,0.1,2348.5,2348.4,4.6842]
[1725968554772,0.1,2348.5,2348.4,13.3342]
[1725968555352,0.1,2348.5,2348.4,7.3342]
[1725968556868,0.1,2348.5,2348.4,4.6842]
[1725968557753,0.1,2348.5,2348.4,0.4258]
[1725968557953,0.1,2348.5,2348.1,0.3695]
[1725968558164,0.52578,2348.5,2348.4,0.4258]
[1725968559270,0.1,2348.5,2348.4,4.6842]
[1725968559654,0.52578,2348.5,2348.4,4.6842]
[1725968559964,0.1,2348.5,2348.4,4.6842]
[1725968560272,0.52578,2348.5,2348.4,4.6842]
[1725968560865,0.52578,2348.5,2348.4,0.4258]
[1725968561070,0.1,2348.5,2348.3,0.4258]
[1725968561272,0.52579,2348.5,2348.4,0.4258]
[1725968562962,0.1,2348.5,2348.4,4.6842]
[1725968565168,0.1,2348.5,2348.4,5.0687]
[1725968569767,0.1,2348.5,2348.4,0.8103]
[1725968569964,0.52578,2348.5,2348.4,0.8103]
[1725968572173,0.1,2348.5,2348.4,0.8103]
[1725968573974,0.52578,2348.5,2348.4,0.8103]
[1725968575461,0.1,2348.5,2348.4,0.8103]
[1725968580062,0.1,2348.5,2348.3,1.54342986]
[1725968580268,0.4258,2348.4,2348.3,0.42581]
[1725968580574,0.42583,2348.2,2348.1,1.11761986]
[1725968580781,0.42587,2348.0,2347.9,1.6764298]
[1725968580974,0.402,2348.1,2348.0,0.42587]
[1725968581278,0.402,2348.1,2348.0,1.54213811]
[1725968582273,0.42584,2348.2,2348.0,1.54213811]
[1725968582473,0.42585,2348.1,2348.0,1.11626811]
[1725968582669,0.42584,2348.2,2348.0,1.54212811]
[1725968584081,0.42584,2348.2,2348.0,0.42586]
[1725968585086,4.08232488,2348.3,2347.9,1.54214811]
[1725968585379,0.42586,2348.1,2348.0,0.42587]
[1725968585575,0.42587,2348.0,2347.9,0.42588]
[1725968586274,2.65363488,2348.1,2348.0,0.42587]
[1725968586470,0.42586,2348.1,2348.0,0.42587]
[1725968586883,0.42587,2348.0,2347.9,0.42587]
[1725968587287,0.42585,2348.1,2348.0,0.42585]
[1725968587781,0.42585,2348.1,2348.0,0.42586]
[1725968588175,2.65361488,2348.2,2348.1,0.42585]
[1725968588671,0.42584,2348.2,2348.1,0.42585]
[1725968588874,2.65361488,2348.2,2348.1,0.42585]
[1725968590281,0.42585,2348.1,2348.0,0.42585]
[1725968590484,0.42585,2348.2,2348.0,0.42585]
[1725968590686,2.65362488,2348.2,2348.0,0.42585]
[1725968591483,0.42585,2348.2,2348.0,0.42585]
[1725968591681,2.65362488,2348.2,2348.0,0.42585]
[1725968591891,0.42585,2348.2,2348.0,0.42585]
[1725968592384,0.42585,2348.1,2348.0,0.42585]
[1725968592783,3.01777488,2348.3,2348.1,0.42585]
[1725968592987,0.42583,2348.2,2348.1,0.42585]
[1725968593881,0.42585,2348.1,2348.0,0.42586]
[1725968594190,0.42586,2348.1,2348.0,0.42587]
[1725968594885,3.44360488,2348.3,2347.8,4.83102811]
[1725968595075,0.42584,2348.2,2348.1,0.42585]
[1725968595883,0.42584,2348.2,2348.0,0.42585]
[1725968596088,0.52584,2348.2,2348.0,0.42585]
[1725968596484,0.52584,2348.2,2347.8,4.83102811]
[1725968596880,0.52584,2348.2,2348.0,0.42585]
[1725968597079,0.42585,2348.1,2348.0,0.42586]
[1725968597483,0.1,2348.2,2348.0,0.42586]
[1725968597686,0.42585,2348.1,2348.0,0.42586]
[1725968603395,0.1,2348.2,2348.1,0.42585]
[1725968603691,0.1,2348.2,2348.1,1.57465]
[1725968603895,0.1,2348.2,2348.1,5.83305]
[1725968604201,0.1,2348.2,2348.1,2.80465]
[1725968605693,0.1,2348.2,2348.1,3.86928]
[1725968605894,0.1,2348.2,2348.1,9.24394811]
[1725968606194,0.1,2348.2,2348.1,10.67394811]
[1725968606596,0.1,2348.2,2348.1,13.65209765]
[1725968606803,0.1,2348.2,2348.1,13.09091096]
[1725968608094,0.1,2348.2,2348.1,13.65209765]
[1725968609100,0.1,2348.2,2348.1,12.02633317]
[1725968610801,0.1,2348.2,2348.1,12.58746765]
[1725968611300,0.1,2348.2,2348.1,12.02658037]
[1725968611812,0.1,2348.2,2348.0,1.11539603]
[1725968611997,0.1,2348.2,2347.9,1.11539603]
[1725968612191,0.1,2348.2,2348.1,0.42585]
[1725968612402,0.1,2348.2,2348.1,8.45964603]
[1725968612704,0.1,2348.2,2348.1,9.52427603]
[1725968612901,0.1,2348.2,2348.1,10.87785679]
[1725968613203,0.1,2348.2,2348.1,9.81331729]
[1725968613409,0.1,2348.2,2348.1,5.79973653]
[1725968615014,0.1,2348.2,2348.1,4.68425]
[1725968615411,0.1,2348.2,2348.1,5.79973653]
[1725968615709,0.1,2348.2,2348.1,4.68425]
[1725968615906,0.1,2348.2,2348.1,5.79973653]
[1725968616112,0.1,2348.2,2348.1,9.52436653]
[1725968616306,0.1,2348.2,2348.1,11.43910377]
[1725968616916,3.03252488,2348.7,2348.5,0.42578]
[1725968617113,3.03252488,2348.7,2348.6,0.3755]
[1725968617813,0.42578,2348.5,2348.2,1.48005062]
[1725968618005,7.29012488,2348.7,2348.3,0.3755]
[1725968618006,3.29218488,2348.6,2348.3,0.3755]
[1725968618211,0.4258,2348.4,2348.3,0.3755]
[1725968619218,0.4258,2348.4,2348.3,0.42581]
[1725968620815,0.42581,2348.3,2348.2,0.42582]
[1725968621119,0.7761,2348.3,2348.2,0.42582]
[1725968621715,2.22777488,2348.5,2348.1,1.11555062]
[1725968621910,2.22777488,2348.6,2348.4,0.4258]
[1725968622114,0.42578,2348.5,2348.4,0.4258]
[1725968622319,0.42577,2348.6,2348.2,2.18012062]
[1725968622721,0.42577,2348.6,2348.3,1.11555062]
[1725968622920,0.42577,2348.6,2348.4,1.21388]
[1725968623126,0.42577,2348.6,2348.4,1.61568]
[1725968623321,2.09457769,2348.6,2348.4,1.61568]
[1725968623513,1.66880769,2348.5,2348.4,1.61568]
[1725968627615,2.09456769,2348.6,2348.4,1.61568]
[1725968627824,1.66880769,2348.5,2348.4,1.61568]
[1725968628015,2.09456769,2348.6,2348.5,0.42578]
[1725968628416,0.42576,2348.6,2348.5,0.42578]
[1725968629425,1.66868845,2348.6,2348.5,0.42578]
[1725968629620,1.66868845,2348.7,2348.6,0.42576]
[1725968629817,3.8479996,2349.0,2348.6,14.03315062]
[1725968629818,1.66868845,2348.9,2348.6,14.03315062]
[1725968630018,1.66868845,2348.9,2348.8,0.42572]
[1725968630215,3.02455488,2349.1,2348.8,43.88572]
[1725968630216,1.66868845,2349.0,2348.8,43.88572]
[1725968630523,2.09437845,2349.0,2348.9,0.8199]
[1725968630718,2.09437845,2349.0,2348.9,0.767]
[1725968630916,2.09437845,2349.0,2348.9,0.3728]
[1725968631125,0.42569,2349.0,2348.8,41.22571]
[1725968631337,2.06508427,2348.9,2348.8,41.22571]
[1725968631920,0.3966,2348.9,2348.8,41.22571]
[1725968632817,2.09417427,2349.0,2348.9,0.4257]
[1725968633610,2.09417427,2349.0,2348.8,41.1647]
[1725968633815,1.11177634,2348.9,2348.8,41.59041]
[1725968636326,1.11177634,2348.9,2348.8,45.84801]
[1725968636528,1.11177634,2349.0,2348.9,0.4257]
[1725968636826,1.11177634,2349.0,2348.8,48.0823]
[1725968636827,1.1114303,2349.1,2349.0,0.42569]
[1725968637021,2.46104427,2349.2,2349.0,0.42569]
[1725968637324,1.11143514,2349.1,2349.0,0.42569]
[1725968638021,1.11143514,2349.1,2349.0,3.08569]
[1725968638220,2.22777488,2349.4,2349.0,3.08569]
[1725968638221,1.11143514,2349.3,2349.1,0.42566]
[1725968638424,1.11143514,2349.3,2349.1,0.42567]
[1725968638425,1.49223514,2349.2,2349.1,0.42567]
[1725968638730,1.87533514,2349.2,2349.1,0.42567]
[1725968638921,2.30098514,2349.2,2349.1,0.42567]
[1725968639124,2.30098514,2349.2,2349.0,0.42568]
[1725968639421,2.30098514,2349.2,2348.8,43.8247]
[1725968639422,1.53710514,2349.1,2348.9,0.42569]
[1725968639620,1.92250514,2349.1,2349.0,0.42569]
[1725968639822,1.11143514,2349.1,2349.0,0.42569]
[1725968640419,1.53710514,2349.1,2348.9,0.4257]
[1725968641226,1.53710514,2349.1,2349.0,0.42569]
[1725968641433,1.11143514,2349.1,2349.0,0.42569]
[1725968642325,2.17562514,2349.1,2348.8,0.42571]
[1725968642530,0.4257,2349.0,2348.8,0.42571]
[1725968642919,2.17562514,2349.1,2348.8,0.42571]
[1725968642920,0.4257,2348.9,2348.8,0.42571]
[1725968644027,0.4257,2348.9,2348.7,41.59283]
[1725968644224,1.19513,2348.8,2348.6,0.42575]
[1725968644934,1.19513,2348.8,2348.6,41.22575]
[1725968645327,0.42574,2348.7,2348.6,40.8]
[1725968645525,1.88083514,2348.8,2348.6,40.8]
[1725968645829,0.42574,2348.7,2348.6,40.8]